bitfinex-derivatives/quotes_BTCF0:USTF0_20241224
["timestamp","ask_amount","ask_price","bid_price","bid_amount"]
[1735068412352,0.05853189,98401.0,98400.0,0.1]
[1735068415549,0.050843,98396.0,98389.0,0.050846]
[1735068415746,0.3608,98394.0,98389.0,0.050846]
[1735068415945,0.00669189,98393.0,98389.0,0.050846]
[1735068416145,0.00669189,98393.0,98380.0,0.09909287]
[1735068416539,0.00669189,98393.0,98391.0,0.050845]
[1735068416749,9.94e-05,98395.0,98393.0,0.050844]
[1735068419049,9.94e-05,98395.0,98380.0,0.01393651]
[1735068419242,0.050845,98393.0,98386.0,0.050848]
[1735068419547,0.050847,98388.0,98380.0,0.046]
[1735068419853,0.00668097,98387.0,98380.0,0.046]
[1735068420041,0.050844,98393.0,98380.0,0.096851]
[1735068420242,0.05752597,98392.0,98380.0,0.096851]
[1735068420438,0.05752597,98391.0,98380.0,0.096851]
[1735068420655,0.00668097,98390.0,98380.0,0.096851]
[1735068420955,0.00668178,98390.0,98380.0,0.096851]
[1735068421748,0.3618,98387.0,98380.0,0.096851]
[1735068422144,0.001,98387.0,98380.0,0.096851]
[1735068422655,0.001,98390.0,98380.0,0.046]
[1735068422953,0.050846,98389.0,98380.0,0.046]
[1735068423157,0.00668393,98388.0,98380.0,0.046]
[1735068423454,0.050848,98386.0,98380.0,0.046]
[1735068423747,0.00668393,98385.0,98380.0,0.046]
[1735068424151,0.00668393,98384.0,98380.0,0.046]
[1735068424461,0.00668393,98383.0,98380.0,0.046]
[1735068424646,0.001,98387.0,98380.0,0.046]
[1735068424647,0.00668393,98386.0,98380.0,0.046]
[1735068424845,0.00668393,98385.0,98380.0,0.046]
[1735068425047,0.00668393,98384.0,98380.0,0.046]
[1735068425251,7.987e-05,98383.0,98380.0,0.046]
[1735068425452,0.05085,98382.0,98380.0,0.046]
[1735068425749,0.00668393,98381.0,98380.0,0.046]
[1735068426253,0.0066767,98381.0,98376.0,0.01380343]
[1735068426454,0.001,98385.0,98363.0,0.097559]
[1735068426455,0.3608,98379.0,98363.0,0.097559]
[1735068426660,0.050854,98374.0,98363.0,0.097559]
[1735068426955,0.00666772,98373.0,98363.0,0.097559]
[1735068427150,0.050859,98365.0,98363.0,0.0467]
[1735068427346,0.05763152,98365.0,98345.0,0.050869]
[1735068427656,0.05763152,98365.0,98331.0,0.3608]
[1735068427657,0.050863,98356.0,98340.0,0.050871]
[1735068427955,0.00674787,98355.0,98346.0,0.37477828]
[1735068428155,0.00666772,98354.0,98346.0,0.42564628]
[1735068428367,8.015e-05,98355.0,98346.0,0.37477828]
[1735068428545,8.015e-05,98355.0,98353.0,0.050864]
[1735068428746,8.015e-05,98355.0,98354.0,0.0444]
[1735068429361,8.015e-05,98355.0,98354.0,0.0749]
[1735068429551,0.0067654,98355.0,98354.0,0.0749]
[1735068430043,0.0077654,98355.0,98354.0,0.0749]
[1735068430248,0.00108015,98355.0,98354.0,0.0749]
[1735068430450,0.3608,98366.0,98354.0,0.0749]
[1735068430763,0.00668883,98365.0,98361.0,0.050861]
[1735068431058,0.00668883,98364.0,98361.0,0.050861]
[1735068431258,0.00668883,98363.0,98361.0,0.050861]
[1735068431462,0.00668883,98362.0,98361.0,0.050861]
[1735068432543,0.3608,98366.0,98361.0,0.050861]
[1735068432749,0.0066989,98365.0,98361.0,0.050861]
[1735068432958,0.0066989,98364.0,98361.0,0.050861]
[1735068433259,0.0066989,98363.0,98361.0,0.050861]
[1735068433465,0.0066989,98362.0,98361.0,0.050861]
[1735068434356,0.3608,98366.0,98356.0,0.09909287]
[1735068434553,0.12092004,98381.0,98377.0,0.050852]
[1735068434759,0.36232565,98387.0,98378.0,0.096552]
[1735068434760,0.12092004,98379.0,98378.0,0.096552]
[1735068436362,0.36232565,98387.0,98383.0,0.050849]
[1735068436562,0.36232565,98387.0,98384.0,0.0465]
[1735068436861,0.36232565,98387.0,98384.0,0.097348]
[1735068437663,0.12092004,98385.0,98384.0,0.097348]
[1735068438455,0.12092004,98385.0,98384.0,0.11068616]
[1735068439061,0.3608,98387.0,98384.0,0.11068616]
[1735068439264,0.3608,98387.0,98384.0,0.01333816]
[1735068439562,0.050848,98386.0,98372.0,0.050855]
[1735068439762,0.050848,98386.0,98376.0,0.09909287]
[1735068440465,0.10028551,98386.0,98376.0,0.09909287]
[1735068441263,0.04943751,98386.0,98376.0,0.09909287]
[1735068441562,0.050848,98385.0,98376.0,0.09909287]
[1735068441754,0.15130217,98382.0,98376.0,0.09909287]
[1735068442965,0.15130217,98382.0,98376.0,0.10009287]
[1735068443167,0.15130217,98383.0,98376.0,0.10009287]
[1735068444068,0.3608,98379.0,98376.0,0.001]
[1735068444263,0.0482,98378.0,98376.0,0.001]
[1735068445153,0.0482,98378.0,98370.0,0.06396027]
[1735068445865,0.0482,98378.0,98370.0,0.01310427]
[1735068446055,0.3608,98379.0,98371.0,0.050855]
[1735068446661,0.15130217,98376.0,98371.0,0.050855]
[1735068446860,0.00660892,98375.0,98371.0,0.050855]
[1735068447060,0.00660892,98374.0,98371.0,0.050855]
[1735068447261,0.00660976,98373.0,98371.0,0.050855]
[1735068447458,0.00660976,98372.0,98371.0,0.050855]
[1735068447659,0.00660976,98372.0,98371.0,0.09376446]
[1735068447864,0.00660976,98372.0,98371.0,0.050855]
[1735068448069,0.00660969,98372.0,98371.0,0.050855]
[1735068448270,0.00660969,98372.0,98371.0,0.051855]
[1735068449967,0.00660969,98372.0,98371.0,0.001]
[1735068450167,0.050857,98368.0,98367.0,0.01254689]
[1735068450472,0.05746669,98368.0,98358.0,0.09909287]
[1735068450768,0.00660969,98367.0,98361.0,0.04291658]
[1735068450973,0.00660969,98366.0,98362.0,0.04291658]
[1735068451158,0.00660969,98365.0,98363.0,0.04291658]
[1735068451364,0.00660969,98364.0,98360.0,0.37342947]
[1735068451563,0.00660969,98363.0,98361.0,0.04291651]
[1735068451770,0.050857,98368.0,98362.0,0.04291651]
[1735068451962,0.00663473,98367.0,98363.0,0.04291651]
[1735068452164,0.00663473,98366.0,98364.0,0.04291651]
[1735068452367,0.00663473,98365.0,98362.0,0.001]
[1735068452565,0.00663473,98364.0,98363.0,0.0429218]
[1735068453372,0.00663473,98364.0,98362.0,0.001]
[1735068453675,0.00663473,98363.0,98360.0,0.37342947]
[1735068453866,0.00663473,98362.0,98361.0,0.04292694]
[1735068454766,0.00664711,98362.0,98361.0,0.04292694]
[1735068455277,0.00664711,98362.0,98360.0,0.37342947]
[1735068455571,0.00664711,98361.0,98360.0,0.37342947]
[1735068455868,0.00664711,98361.0,98360.0,0.41636271]
[1735068456075,0.00664711,98361.0,98360.0,0.46722371]
[1735068456270,0.00664711,98361.0,98360.0,0.42429047]
[1735068456471,0.00664711,98361.0,98360.0,0.4672265]
[1735068456776,0.00664711,98361.0,98360.0,0.42429047]
[1735068457071,0.00664711,98361.0,98360.0,0.46722786]
[1735068457374,0.12774246,98361.0,98360.0,0.42429047]
[1735068457573,0.12774246,98361.0,98360.0,0.46723278]
[1735068458274,0.12774246,98361.0,98360.0,0.42429047]
[1735068458773,0.12774246,98361.0,98360.0,0.46723778]
[1735068459167,0.12774246,98361.0,98360.0,0.42429047]
[1735068459875,0.12774246,98361.0,98360.0,0.46724305]
[1735068460265,0.12774246,98361.0,98360.0,0.42429047]
[1735068460465,0.12774475,98361.0,98360.0,0.42429047]
[1735068460874,0.1342598,98371.0,98370.0,0.050856]
[1735068461072,0.02294904,98380.0,98379.0,0.050851]
[1735068461370,0.02294904,98380.0,98379.0,0.45460519]
[1735068461568,0.02294904,98380.0,98379.0,0.411651]
[1735068461873,0.3608,98397.0,98379.0,0.050851]
[1735068461874,0.050844,98393.0,98379.0,0.050851]
[1735068462069,0.3608,98397.0,98371.0,0.0914]
[1735068462070,0.3608,98389.0,98371.0,0.0914]
[1735068462264,0.3608,98389.0,98380.0,0.09909287]
[1735068462465,0.3608,98389.0,98379.0,0.050851]
[1735068462665,0.0444,98388.0,98379.0,0.050851]
[1735068463371,0.095247,98388.0,98373.0,0.050854]
[1735068463574,0.3608,98379.0,98362.0,0.30212097]
[1735068463870,0.05086,98363.0,98362.0,0.30212097]
[1735068464775,0.050861,98361.0,98354.0,0.01288698]
[1735068464975,0.3608,98359.0,98354.0,0.01288698]
[1735068465474,0.3608,98359.0,98344.0,0.34164]
[1735068465475,0.050862,98358.0,98344.0,0.392509]
[1735068465679,0.050862,98358.0,98344.0,0.34164]
[1735068466173,0.050862,98358.0,98334.0,0.30212097]
[1735068466174,0.050871,98341.0,98334.0,0.30212097]
[1735068466369,0.3608,98341.0,98334.0,0.30212097]
[1735068466973,0.050874,98335.0,98334.0,0.30212097]
[1735068467471,0.050874,98335.0,98316.0,0.42410686]
[1735068467472,0.050874,98335.0,98316.0,0.00088]
[1735068467678,0.3608,98325.0,98320.0,0.09909287]
[1735068467872,0.09071946,98339.0,98321.0,0.050881]
[1735068467873,0.411675,98333.0,98321.0,0.050881]
[1735068468076,0.3608,98333.0,98320.0,0.09909287]
[1735068468372,0.3608,98333.0,98323.0,0.05088]
[1735068468772,0.3608,98333.0,98320.0,0.09909287]
[1735068468974,0.001,98335.0,98323.0,0.3608]
[1735068469282,0.001,98335.0,98334.0,0.050875]
[1735068469670,0.09909287,98350.0,98323.0,0.3608]
[1735068469978,0.001,98333.0,98323.0,0.3608]
[1735068470174,0.001,98333.0,98322.0,0.050881]
[1735068470377,0.3608,98323.0,98322.0,0.050881]
[1735068470768,0.3608,98323.0,98315.0,0.01281775]
[1735068470972,0.3608,98323.0,98316.0,0.050884]
[1735068471175,0.3608,98323.0,98312.0,0.24328734]
[1735068471481,0.411684,98315.0,98312.0,0.24328734]
[1735068471881,0.411684,98315.0,98301.0,0.18224089]
[1735068472974,0.41825796,98315.0,98301.0,0.18224089]
[1735068473178,0.050891,98302.0,98301.0,0.18224089]
[1735068473474,0.05746496,98302.0,98293.0,0.050896]
[1735068473778,0.00657396,98301.0,98293.0,0.050896]
[1735068474577,0.00657396,98301.0,98283.0,0.3608]
[1735068474777,0.30657396,98301.0,98273.0,0.18312089]
[1735068474976,0.3608,98274.0,98273.0,0.18224089]
[1735068475176,0.00657396,98274.0,98273.0,0.3608]
[1735068475379,0.3608,98280.0,98262.0,0.18224089]
[1735068475580,0.00653822,98279.0,98271.0,0.050907]
[1735068475880,0.00653822,98278.0,98271.0,0.050907]
[1735068476077,0.00653822,98279.0,98271.0,0.050907]
[1735068476283,0.00653822,98279.0,98262.0,0.18224089]
[1735068476284,0.050904,98277.0,98263.0,0.050911]
[1735068476583,0.09909287,98273.0,98265.0,0.05091]
[1735068476777,0.00653822,98272.0,98265.0,0.05091]
[1735068476980,0.00653822,98274.0,98270.0,0.050907]
[1735068477182,0.00653822,98279.0,98270.0,0.050907]
[1735068478275,0.05744122,98279.0,98270.0,0.050907]
[1735068478484,0.05744122,98279.0,98259.0,0.01241886]
[1735068478485,0.050913,98261.0,98259.0,0.01241886]
[1735068478675,0.3608,98260.0,98244.0,0.3608]
[1735068478877,0.3608,98260.0,98258.0,0.050913]
[1735068479074,0.09909287,98270.0,98252.0,0.3608]
[1735068479270,0.00652225,98269.0,98267.0,0.050909]
[1735068479474,0.00652225,98270.0,98267.0,0.050909]
[1735068479675,0.050907,98272.0,98267.0,0.050909]
[1735068479878,0.00652314,98271.0,98267.0,0.050909]
[1735068480086,0.00652314,98271.0,98261.0,0.3608]
[1735068480285,0.00652314,98271.0,98244.0,0.050921]
[1735068480286,0.10561601,98271.0,98244.0,0.050921]
[1735068480584,0.3608,98269.0,98243.0,0.047]
[1735068480892,0.00652314,98268.0,98262.0,0.050911]
[1735068481075,0.00652314,98268.0,98255.0,0.050915]
[1735068481276,0.09909287,98270.0,98263.0,0.050911]
[1735068481480,0.00652314,98269.0,98263.0,0.050911]
[1735068481986,0.00652314,98269.0,98268.0,0.050909]
[1735068482176,0.00652314,98269.0,98267.0,0.3608]
[1735068482177,0.00650771,98279.0,98278.0,0.050903]
[1735068482686,0.09909287,98300.0,98289.0,0.050898]
[1735068482990,0.09909287,98310.0,98293.0,0.411696]
[1735068483174,0.09909287,98303.0,98293.0,0.050896]
[1735068483380,0.09909287,98303.0,98293.0,0.150896]
[1735068483579,0.3608,98306.0,98293.0,0.150896]
[1735068484082,0.050899,98287.0,98281.0,0.3608]
[1735068484282,0.050906,98274.0,98259.0,0.050913]
[1735068484491,0.09909287,98280.0,98263.0,0.050911]
[1735068484690,0.00650301,98279.0,98261.0,0.3608]
[1735068484880,0.050899,98288.0,98272.0,0.050907]
[1735068485081,0.00651085,98287.0,98272.0,0.050907]
[1735068485385,0.0509,98286.0,98272.0,0.050907]
[1735068485686,0.3608,98284.0,98269.0,0.3608]
[1735068485883,0.3608,98270.0,98265.0,0.05091]
[1735068486077,0.3608,98270.0,98266.0,0.1]
[1735068489583,0.050908,98269.0,98235.0,0.3608]
[1735068489790,0.050921,98244.0,98233.0,0.3608]
[1735068489990,0.3608,98249.0,98233.0,0.3608]
[1735068490189,0.050922,98243.0,98233.0,0.3608]
[1735068490387,0.3608,98249.0,98233.0,0.3608]
[1735068490388,0.3608,98249.0,98234.0,0.1]
[1735068490594,0.3608,98249.0,98244.0,0.050921]
[1735068490902,0.3608,98261.0,98246.0,0.3608]
[1735068490903,0.050916,98255.0,98246.0,0.3608]
[1735068491286,0.05092,98248.0,98233.0,0.37432111]
[1735068491484,0.05092,98248.0,98237.0,0.3608]
[1735068492287,0.3608,98270.0,98245.0,0.3608]
[1735068492488,0.3608,98270.0,98262.0,0.050912]
[1735068492692,0.00651647,98269.0,98263.0,0.145311]
[1735068492889,0.00651647,98269.0,98265.0,0.05091]
[1735068493691,0.00651647,98269.0,98263.0,0.0944]
[1735068493886,0.00651647,98269.0,98268.0,0.3608]
[1735068494084,0.050897,98291.0,98268.0,0.3608]
[1735068494291,0.00652662,98290.0,98282.0,0.050901]
[1735068494582,0.3623272,98294.0,98283.0,0.1]
[1735068494786,0.3623272,98294.0,98290.0,0.050897]
[1735068494987,0.3623272,98294.0,98281.0,0.3608]
[1735068494988,0.0015272,98294.0,98291.0,0.1491]
[1735068495186,0.0015272,98294.0,98292.0,0.050896]
[1735068495384,0.0015272,98294.0,98292.0,0.1]
[1735068496597,0.0015272,98294.0,98292.0,0.150896]
[1735068496790,0.0045272,98294.0,98292.0,0.150896]
[1735068497399,0.0045272,98294.0,98293.0,0.0475]
[1735068497596,0.0055272,98294.0,98293.0,0.0475]
[1735068497904,0.09031124,98310.0,98309.0,0.050888]
[1735068498096,0.050875,98334.0,98309.0,0.050888]
[1735068498097,0.050875,98334.0,98309.0,0.4552728]
[1735068498299,0.050878,98328.0,98317.0,0.3608]
[1735068499001,0.050878,98328.0,98310.0,0.24362945]
[1735068499306,0.050878,98328.0,98310.0,0.29451645]
[1735068499501,0.3608,98320.0,98310.0,0.29451645]
[1735068500203,0.3608,98331.0,98310.0,0.30689554]
[1735068500506,0.050878,98327.0,98310.0,0.15773889]
[1735068500895,0.050878,98327.0,98312.0,0.050886]
[1735068501094,0.050878,98327.0,98312.0,0.3608]
[1735068501095,0.002,98320.0,98312.0,0.3608]
[1735068501295,0.002,98320.0,98313.0,0.100085]
[1735068501705,0.002,98320.0,98315.0,0.050884]
[1735068502798,0.050878,98327.0,98315.0,0.050884]
[1735068504005,0.3608,98331.0,98310.0,0.25600854]
[1735068504006,0.3608,98318.0,98310.0,0.10685189]
[1735068504214,0.050888,98309.0,98299.0,0.0944728]
[1735068504398,0.3608,98318.0,98299.0,0.0944728]
[1735068504811,0.050889,98307.0,98299.0,0.0944728]
[1735068504999,0.050889,98307.0,98300.0,0.37289061]
[1735068505399,0.050889,98307.0,98299.0,0.0944728]
[1735068505698,0.3608,98303.0,98299.0,0.0944728]
[1735068505903,0.050889,98307.0,98299.0,0.0944728]
[1735068506108,0.05089,98305.0,98299.0,0.0944728]
[1735068506310,0.3608,98310.0,98299.0,0.0944728]
[1735068506503,0.3608,98310.0,98300.0,0.20004865]
[1735068506706,0.00649152,98309.0,98308.0,0.050888]
[1735068510016,0.00650213,98309.0,98308.0,0.051888]
[1735068510612,0.00650213,98309.0,98299.0,0.0944728]
[1735068510809,0.3608,98310.0,98300.0,0.050892]
[1735068510810,0.00650213,98308.0,98300.0,0.050892]
[1735068511110,0.00650213,98307.0,98300.0,0.050892]
[1735068511313,0.00650213,98306.0,98300.0,0.050892]
[1735068511499,0.00650213,98305.0,98300.0,0.050892]
[1735068511704,0.00650213,98304.0,98300.0,0.050892]
[1735068511900,0.00650213,98303.0,98300.0,0.050892]
[1735068512107,0.00650213,98302.0,98300.0,0.050892]
[1735068512302,0.00650213,98301.0,98300.0,0.050892]
[1735068513415,0.00650213,98301.0,98300.0,0.051892]
[1735068513805,0.00650213,98301.0,98300.0,0.001]
[1735068516601,0.00650213,98301.0,98299.0,0.1453648]
[1735068516812,0.00650213,98301.0,98297.0,0.01216273]
[1735068516813,0.00650213,98300.0,98297.0,0.01216273]
[1735068517014,0.14983404,98329.0,98297.0,0.01216273]
[1735068517015,0.3608,98323.0,98298.0,0.0944728]
[1735068517215,0.3608,98323.0,98293.0,0.045]
[1735068517216,0.050893,98298.0,98293.0,0.045]
[1735068517710,0.050893,98298.0,98294.0,0.0944728]
[1735068517905,0.0473,98305.0,98294.0,0.0944728]
[1735068517906,0.3608,98295.0,98294.0,0.0944728]
[1735068518111,0.050895,98294.0,98292.0,0.35413974]
[1735068520316,0.050895,98294.0,98292.0,0.34204]
[1735068521618,0.3608,98295.0,98292.0,0.34204]
[1735068522304,0.3608,98295.0,98292.0,0.392936]
[1735068523017,0.3608,98295.0,98292.0,0.34204]
[1735068523610,0.3608,98295.0,98291.0,0.01173925]
[1735068523817,0.050896,98293.0,98288.0,0.050898]
[1735068524516,0.17163553,98293.0,98288.0,0.050898]
[1735068525117,0.17163553,98293.0,98288.0,0.051898]
[1735068526212,0.050896,98293.0,98288.0,0.051898]
[1735068526607,0.050896,98293.0,98288.0,0.06356752]
[1735068527416,0.12097296,98290.0,98288.0,0.06356752]
[1735068528312,0.12097296,98290.0,98289.0,0.0944728]
[1735068528923,0.3608,98295.0,98290.0,0.050897]
[1735068528924,0.12097296,98292.0,98290.0,0.050897]
[1735068529220,0.12097296,98292.0,98291.0,0.0487]
[1735068529406,0.12097296,98292.0,98291.0,0.0945]
[1735068530815,0.050891,98302.0,98291.0,0.0945]
[1735068531018,0.050891,98302.0,98293.0,0.050895]
[1735068531210,0.050891,98302.0,98294.0,0.050895]
[1735068531405,0.12097296,98303.0,98298.0,0.050893]
[1735068531607,0.12097296,98303.0,98299.0,0.0944728]
[1735068531913,0.12097296,98303.0,98301.0,0.050891]
[1735068532107,0.14983404,98311.0,98301.0,0.050891]
[1735068532108,0.12097296,98302.0,98301.0,0.050891]
[1735068532515,0.087664,98302.0,98301.0,0.050891]
[1735068533618,0.001,98303.0,98301.0,0.050891]
[1735068533824,0.001,98303.0,98302.0,0.3608]
[1735068534722,0.050881,98321.0,98308.0,0.050888]
[1735068534918,0.050881,98321.0,98305.0,0.09940265]
[1735068535123,0.050881,98321.0,98310.0,0.050887]
[1735068535525,0.14983404,98325.0,98311.0,0.0944728]
[1735068535823,0.20071404,98325.0,98313.0,0.050885]
[1735068537517,0.3628,98315.0,98313.0,0.050885]
[1735068538424,0.3638,98315.0,98313.0,0.050885]
[1735068540521,0.3638,98315.0,98313.0,0.06260808]
[1735068540724,0.3638,98315.0,98313.0,0.01172308]
[1735068540927,0.0462,98314.0,98311.0,0.0944728]
[1735068542014,0.050886,98312.0,98311.0,0.10602926]
[1735068542215,0.050886,98312.0,98305.0,0.04144712]
[1735068542413,0.050886,98312.0,98295.0,0.25523493]
[1735068542414,0.050894,98296.0,98295.0,0.25523493]
[1735068542620,0.411694,98296.0,98295.0,0.24328734]
[1735068543824,0.411694,98296.0,98286.0,0.09940265]
[1735068543825,0.050896,98293.0,98286.0,0.09940265]
[1735068544027,0.3608,98287.0,98285.0,0.0509]
[1735068544424,0.3608,98287.0,98283.0,0.35368662]
[1735068545014,0.411699,98287.0,98286.0,0.002]
[1735068545622,0.050903,98280.0,98259.0,0.050913]
[1735068545823,0.050903,98280.0,98257.0,0.24328734]
[1735068545824,0.3608,98282.0,98257.0,0.24328734]
[1735068546030,0.3608,98258.0,98257.0,0.24328734]
[1735068546622,0.3608,98258.0,98257.0,0.0118182]
[1735068546925,0.411714,98258.0,98253.0,0.050916]
[1735068547131,0.3608,98258.0,98246.0,0.05092]
[1735068547319,0.412714,98258.0,98257.0,0.004]
[1735068547521,0.050922,98242.0,98234.0,0.30212097]
[1735068547824,0.411722,98242.0,98234.0,0.30212097]
[1735068548024,0.3608,98242.0,98231.0,0.00152703]
[1735068548326,0.050925,98236.0,98231.0,0.00152703]
[1735068548520,0.3608,98234.0,98231.0,0.00152703]
[1735068549431,0.050927,98233.0,98231.0,0.00152703]
[1735068549836,0.3608,98234.0,98231.0,0.00152703]
[1735068550534,0.3608,98234.0,98232.0,0.050927]
[1735068550934,0.001,98233.0,98232.0,0.050927]
[1735068551328,0.001,98233.0,98232.0,0.1453998]
[1735068552434,0.3608,98239.0,98232.0,0.1453998]
[1735068552637,0.001,98234.0,98232.0,0.1453998]
[1735068553233,0.3608,98239.0,98232.0,0.1453998]
[1735068553424,0.001,98233.0,98232.0,0.1453998]
[1735068553926,0.3608,98239.0,98232.0,0.1453998]
[1735068554132,0.001,98234.0,98232.0,0.1453998]
[1735068555529,0.3608,98239.0,98232.0,0.1453998]
[1735068555729,0.001,98233.0,98232.0,0.1453998]
[1735068555923,0.3608,98251.0,98240.0,0.050923]
[1735068557135,0.3608,98251.0,98246.0,0.05092]
[1735068557330,0.3608,98251.0,98247.0,0.0944728]
[1735068557836,0.3608,98251.0,98249.0,0.050918]
[1735068558227,0.3608,98251.0,98250.0,0.0944728]
[1735068559029,0.3608,98251.0,98250.0,0.1390728]
[1735068563738,0.050914,98258.0,98250.0,0.1390728]
[1735068564125,0.050914,98258.0,98250.0,0.1899908]
[1735068565235,0.050914,98258.0,98250.0,0.20226236]
[1735068565436,0.00152727,98263.0,98250.0,0.15134436]
[1735068565639,0.05243927,98263.0,98255.0,0.050915]
[1735068565935,0.00152727,98263.0,98255.0,0.050915]
[1735068566134,0.00152727,98263.0,98250.0,0.05687156]
[1735068566331,0.050917,98252.0,98250.0,0.01227156]
[1735068566535,0.050922,98243.0,98236.0,0.0461]
[1735068566730,0.3608,98247.0,98236.0,0.097025]
[1735068567047,0.050922,98242.0,98237.0,0.09940265]
[1735068567427,0.050922,98242.0,98238.0,0.0944728]
[1735068567832,0.3608,98247.0,98236.0,0.0461]
[1735068568437,0.001,98242.0,98237.0,0.09940265]
[1735068569040,0.41172,98247.0,98237.0,0.15032665]
[1735068569241,0.41272,98247.0,98237.0,0.15032665]
[1735068570850,0.001,98242.0,98237.0,0.15032665]
[1735068571042,0.050925,98237.0,98235.0,0.01221668]
[1735068571345,0.3608,98238.0,98231.0,0.00152703]
[1735068571545,0.050927,98233.0,98231.0,0.01342739]
[1735068572237,0.3608,98238.0,98231.0,0.01342739]
[1735068572539,0.3618,98238.0,98232.0,0.0464]
[1735068574047,0.3608,98237.0,98233.0,0.0944728]
[1735068574245,0.3608,98237.0,98236.0,0.050925]
[1735068577849,0.51182551,98237.0,98236.0,0.050925]
[1735068581753,0.15102551,98237.0,98236.0,0.050925]
[1735068583051,0.15102551,98242.0,98236.0,0.050925]
[1735068586248,0.15102551,98241.0,98236.0,0.050925]
[1735068586551,0.15102551,98241.0,98239.0,0.050923]
[1735068587855,0.15102551,98242.0,98239.0,0.050923]
[1735068588762,0.001,98241.0,98239.0,0.050923]
[1735068590155,0.001,98242.0,98239.0,0.050923]
[1735068590956,0.001,98241.0,98239.0,0.050923]
[1735068591656,0.15202551,98242.0,98239.0,0.050923]
[1735068593253,0.15202551,98242.0,98233.0,0.0431]
[1735068593465,0.20294751,98242.0,98233.0,0.094026]
[1735068593660,0.20194751,98242.0,98233.0,0.094026]
[1735068593860,0.001,98241.0,98233.0,0.094026]
[1735068594060,0.050925,98237.0,98232.0,0.0464]
[1735068594262,0.001,98241.0,98232.0,0.0464]
[1735068594464,0.050926,98235.0,98232.0,0.0464]
[1735068594671,0.23019097,98241.0,98232.0,0.0464]
[1735068594962,0.050927,98232.0,98231.0,0.01342739]
[1735068596166,0.46123653,98232.0,98231.0,0.01342739]
[1735068597565,0.46423653,98232.0,98231.0,0.01342739]
[1735068600564,0.46423653,98232.0,98231.0,0.06435539]
[1735068601269,0.46423653,98232.0,98231.0,0.01342739]
[1735068601767,0.46323653,98232.0,98231.0,0.01342739]
[1735068601977,0.46323653,98232.0,98231.0,0.00152703]
[1735068603474,0.46423653,98232.0,98231.0,0.00152703]
[1735068603670,0.46423653,98232.0,98231.0,0.05245503]
[1735068603671,0.41330953,98232.0,98231.0,0.05245503]
[1735068603975,0.46423653,98232.0,98231.0,0.05245503]
[1735068604176,0.41330953,98232.0,98231.0,0.05245503]
[1735068604772,0.41030953,98232.0,98231.0,0.05245503]
[1735068604973,0.41330953,98232.0,98231.0,0.05245503]
[1735068605862,0.05250953,98232.0,98231.0,0.05245503]
[1735068606069,0.08520864,98239.0,98238.0,0.050924]
[1735068606587,0.3608,98255.0,98243.0,0.050922]
[1735068606766,0.3608,98255.0,98254.0,0.050916]
[1735068607478,0.21079257,98267.0,98247.0,0.3608]
[1735068607777,0.00052001,98269.0,98268.0,0.050909]
[1735068608086,0.00052001,98279.0,98276.0,0.050904]
[1735068608372,0.00052001,98279.0,98268.0,0.3608]
[1735068608373,0.17867215,98288.0,98269.0,0.14580265]
[1735068608566,0.17867215,98288.0,98280.0,0.050902]
[1735068608771,0.17867215,98288.0,98270.0,0.09940265]
[1735068608973,0.050903,98279.0,98270.0,0.09940265]
[1735068609570,0.09940265,98280.0,98268.0,0.01251432]
[1735068609768,0.3608,98273.0,98270.0,0.09940265]
[1735068610066,0.3608,98273.0,98265.0,0.05091]
[1735068610265,0.004,98269.0,98265.0,0.05091]
[1735068610872,0.3608,98273.0,98268.0,0.050909]
[1735068611073,0.003,98273.0,98269.0,0.0476]
[1735068612985,0.17175707,98276.0,98269.0,0.0476]
[1735068613180,0.17175707,98276.0,98268.0,0.09623]
[1735068613371,0.17175707,98276.0,98270.0,0.00712]
[1735068613771,0.12085207,98275.0,98270.0,0.00712]
[1735068613971,0.003,98273.0,98270.0,0.00712]
[1735068614574,0.17175707,98275.0,98268.0,0.16318]
[1735068615086,0.050905,98275.0,98268.0,0.16318]
[1735068615779,0.050905,98275.0,98269.0,0.00712]
[1735068616778,0.3608,98279.0,98269.0,0.00712]
[1735068616779,0.003,98273.0,98269.0,0.00712]
[1735068617181,0.050907,98271.0,98268.0,0.16318]
[1735068618185,0.050908,98270.0,98268.0,0.16318]
[1735068618584,0.0468,98269.0,98268.0,0.16318]
[1735068620283,0.0468,98269.0,98239.0,0.142324]
[1735068620284,0.050922,98244.0,98239.0,0.142324]
[1735068620483,0.3608,98241.0,98232.0,0.098927]
[1735068620688,0.050924,98238.0,98234.0,0.050926]
[1735068621381,0.3608,98241.0,98234.0,0.050926]
[1735068622080,0.050926,98235.0,98233.0,0.00712]
[1735068622485,0.050927,98233.0,98232.0,0.01204623]
[1735068622683,0.411727,98233.0,98226.0,0.00011161]
[1735068623788,0.411727,98233.0,98228.0,0.00712]
[1735068624281,0.411727,98233.0,98231.0,0.01378166]
[1735068624489,0.411727,98233.0,98231.0,0.00152703]
[1735068624692,0.050928,98231.0,98228.0,0.00712]
[1735068624984,0.3608,98229.0,98200.0,0.1]
[1735068625288,0.3608,98228.0,98210.0,0.09940265]
[1735068625477,0.050935,98218.0,98210.0,0.09940265]
[1735068625679,0.46020265,98220.0,98201.0,0.3608]
[1735068625878,0.3608,98210.0,98201.0,0.3608]
[1735068626075,0.050941,98205.0,98200.0,0.11187975]
[1735068626386,0.411333,98202.0,98200.0,0.11187975]
[1735068626982,0.36039,98202.0,98200.0,0.11187975]
[1735068627287,0.050943,98201.0,98200.0,0.11187975]
[1735068627492,0.36039,98202.0,98200.0,0.11187975]
[1735068628877,0.412333,98202.0,98200.0,0.11187975]
[1735068629990,0.00011612,98201.0,98200.0,0.11187975]
[1735068631396,0.00011612,98201.0,98200.0,0.1]
[1735068631690,0.00011612,98201.0,98171.0,0.0444]
[1735068631691,0.7073,98201.0,98171.0,0.0444]
[1735068631883,0.411755,98178.0,98171.0,0.0444]
[1735068632086,0.411755,98178.0,98160.0,0.3608]
[1735068632087,8.959e-05,98177.0,98160.0,0.3608]
[1735068632281,0.3608,98168.0,98160.0,0.3608]